fUST/lending_fUST_20240108
["ID","MTS","AMOUNT","RATE_DAILY","PERIOD"]
[310724589,1704677440056,-762.55193457,0.00034193,4]
[310724590,1704677440065,-421.16298282,0.00034193,4]
[310724591,1704677440074,-21303.72656009,0.00034193,4]
[310724592,1704677440083,-156.69710926,0.00034193,4]
[310724593,1704677440093,-3157.32283261,0.00034194,4]
[310724594,1704677440102,-293.605473,0.00034194,2]
[310724595,1704677440113,-293.605473,0.00034194,2]
[310724596,1704677440122,-151.0,0.00034195,2]
[310724597,1704677440133,-151.0,0.00034195,2]
[310724598,1704677440142,-151.0,0.00034195,2]
[310724599,1704677440151,-151.0,0.00034195,2]
[310724600,1704677440160,-293.605473,0.00034195,2]
[310724601,1704677440169,-293.605473,0.00034195,2]
[310724602,1704677440179,-1082.41110089,0.00034195,4]
[310724603,1704677440188,-2330.21013794,0.00034195,4]
[310724604,1704677440197,-212.3588479,0.00034195,4]
[310724605,1704677440209,-212.52935547,0.00034195,4]
[310724606,1704677440241,-35372.0778616,0.00034195,4]
[310724607,1704677440250,-2114.13126207,0.00034195,4]
[310724608,1704677440260,-223.46942977,0.00034196,4]
[310724609,1704677440269,-1573.58742411,0.00034196,4]
[310724610,1704677440278,-1680.57696701,0.00034196,4]
[310724611,1704677440287,-215.17374618,0.00034196,4]
[310724612,1704677440296,-245.49702411,0.00034196,4]
[310724613,1704677440305,-787.39585825,0.00034196,4]
[310724614,1704677440314,-10470.42522499,0.00034196,4]
[310724615,1704677440323,-2768.44943562,0.00034197,4]
[310724616,1704677440333,-2074.01358912,0.00034197,4]
[310724617,1704677440342,-241.98486425,0.00034197,4]
[310724618,1704677440351,-155.285041,0.00034197,2]
[310724619,1704677440361,-151.0,0.00034197,2]
[310724620,1704677440370,-151.0,0.00034197,2]
[310724621,1704677440379,-293.605473,0.00034197,2]
[310724622,1704677440390,-293.605473,0.00034197,2]
[310724623,1704677440399,-748.46667511,0.00034198,2]
[310724624,1704677440408,-300.0,0.00034198,4]
[310724625,1704677440417,-2792.14675603,0.00034198,4]
[310724626,1704677440426,-2446.28683495,0.00034198,2]
[310724627,1704677440436,-409.53045102,0.00034198,2]
[310724628,1704677440445,-282.4048077,0.00034198,3]
[310724629,1704677440454,-1506.91202062,0.00034198,4]
[310724631,1704677440463,-506.76168425,0.00034198,4]
[310724633,1704677440472,-3005.39361446,0.00034199,4]
[310724635,1704677440481,-167.321531,0.00034212,2]
[310724637,1704677440490,-1500.0,0.000344,2]
[310724640,1704677440500,-4000.0,0.00034521,2]
[310724653,1704677440584,-1000.0,0.00034574,2]
[310724655,1704677440593,-1000.0,0.00034594,2]
[310724657,1704677440604,-1000.0,0.00034639,2]
[310724659,1704677440613,-198.54882083,0.00034639,4]
[310724661,1704677440622,-197.23179383,0.00034639,4]
[310724663,1704677440631,-23537.02486872,0.00034641,4]
[310724665,1704677440641,-151.0,0.00034641,2]
[310724667,1704677440649,-151.0,0.00034641,2]
[310724668,1704677440658,-293.605473,0.00034641,2]
[310724671,1704677440667,-293.605473,0.00034641,2]
[310724672,1704677440676,-1000.0,0.00034647,2]
[310724674,1704677440686,-1000.0,0.00034701,2]
[310724676,1704677440695,-210.0596673,0.00034712,2]
[310724678,1704677440704,-210.0596668,0.00034712,2]
[310724680,1704677440713,-210.0997175,0.00034712,2]
[310724682,1704677440722,-210.0596667,0.00034712,2]
[310724684,1704677440731,-210.0596667,0.00034712,2]
[310724686,1704677440740,-210.0596662,0.00034712,2]
[310724688,1704677440750,-1000.0,0.00034737,2]
[310724691,1704677440759,-322.57910218,0.00034793,4]
[310724693,1704677440768,-568.42609196,0.00034793,4]
[310724694,1704677440777,-264.66072966,0.00034793,4]
[310724696,1704677440787,-216.18822034,0.00034793,4]
[310724698,1704677440796,-156.83504531,0.0003499,2]
[310724700,1704677440805,-251.30158019,0.00034991,4]
[310724702,1704677440814,-176.2582747,0.00034993,4]
[310724705,1704677440824,-1230.73429534,0.00034993,4]
[310724706,1704677440833,-9543.94425055,0.00034993,4]
[310724708,1704677440842,-808.82929046,0.00034993,4]
[310724710,1704677440852,-208.86323723,0.00034993,4]
[310724712,1704677440861,-3937.44873317,0.00034994,4]
[310724714,1704677440871,-323.13589936,0.00034994,4]
[310724716,1704677440880,-236.00464652,0.00034995,4]
[310724717,1704677440891,-471.49969074,0.00034995,4]
[310724718,1704677440900,-200.10190382,0.00034995,4]
[310724719,1704677440910,-155.70605252,0.00034995,4]
[310724720,1704677440919,-2651.84083885,0.00035,4]
[310724721,1704677440928,-542.29122667,0.00035,7]
[310724722,1704677440937,-3542.83244916,0.00035,2]
[310724723,1704677440947,-4351.04636824,0.00035,4]
[310724724,1704677440956,-590.93549406,0.00035,2]
[310724725,1704677440965,-154.86062544,0.00035,4]
[310724726,1704677440974,-332.3775806,0.00035,4]
[310724727,1704677440984,-6810.57067298,0.00035,2]
[310724728,1704677440993,-154.86062544,0.00035,2]
[310724729,1704677441003,-151.0,0.00035,2]
[310724730,1704677441012,-151.0,0.00035,2]
[310724731,1704677441021,-151.0,0.00035,2]
[310724732,1704677441030,-235.0,0.00035,2]
[310724733,1704677441039,-293.605473,0.00035,2]
[310724734,1704677441048,-293.605473,0.00035,2]
[310724735,1704677441057,-293.605473,0.00035,2]
[310724736,1704677441066,-293.605473,0.00035,2]
[310724737,1704677441075,-2586.68002494,0.00035,2]
[310724738,1704677441097,-2204.50374427,0.00035,2]
[310724916,1704677446529,-351.0,0.00034795,2]
[310724917,1704677446539,-351.0,0.00035,2]
[310724918,1704677446549,-952.67100006,0.00035,2]
[310724919,1704677446561,-5364.13004659,0.00035,2]
[310724920,1704677446571,-6000.0,0.00035,2]
[310724921,1704677446581,-6438.68518081,0.00035,2]
[310724922,1704677446590,-6000.0,0.00035,2]
[310724923,1704677446599,-937.7419728,0.00035068,14]
[310724924,1704677446609,-2000.0,0.00035129,30]
[310724925,1704677446618,-155.0,0.0003517,2]
[310724926,1704677446628,-937.7419728,0.0003521,14]
[310724927,1704677446638,-157.69240816,0.00035249,14]
[310724929,1704677446651,-157.69240816,0.00035307,14]
[310724931,1704677446660,-1350.19802051,0.0003533,2]
[310724932,1704677446671,-4298.30612317,0.00035349,3]
[310724934,1704677446681,-293.605473,0.00035349,2]
[310724936,1704677446690,-293.605473,0.00035349,2]
[310724938,1704677446699,-2053.81997897,0.0003538,15]
[310724940,1704677446709,-5157.61494504,0.0003538,7]
[310724942,1704677446718,-157.69240816,0.00035384,14]
[310724944,1704677446727,-151.0,0.000354,2]
[310724946,1704677446736,-1500.0,0.000354,2]
[310724948,1704677446745,-200.270631,0.000354,7]
[310724950,1704677446754,-537.747278,0.000354,3]
[310724952,1704677446764,-824.0,0.00035452,2]
[310724954,1704677446774,-157.69240816,0.00035461,14]
[310724956,1704677446783,-224.38736429,0.00035491,4]
[310724958,1704677446792,-157.15899414,0.00035492,4]
[310724960,1704677446801,-190.15492254,0.00035493,4]
[310724962,1704677446810,-309.64391646,0.00035493,4]
[310724964,1704677446819,-197.44993685,0.00035493,4]
[310724966,1704677446828,-209.00823275,0.00035493,4]
[310724968,1704677446837,-200.0,0.00035493,4]
[310724970,1704677446846,-362.07678307,0.00035493,4]
[310724972,1704677446855,-156.03701477,0.00035493,4]
[310724974,1704677446865,-246.61662875,0.00035493,4]
[310724980,1704677446955,-192.37088683,0.00035493,4]
[310724981,1704677446964,-155.16727449,0.00035495,4]
[310724982,1704677446974,-301.69876032,0.00035495,4]
[310724983,1704677446983,-155.28489884,0.00035496,4]
[310724984,1704677446993,-840.58318749,0.00035496,14]
[310724985,1704677447002,-762.46920844,0.00035497,14]
[310724986,1704677447023,-1226.88241822,0.00035497,14]
[310724987,1704677447034,-396.55993014,0.00035497,4]
[310724988,1704677447043,-636.75982605,0.00035497,4]
[310724989,1704677447054,-279.74187174,0.00035497,6]
[310724990,1704677447064,-293.44833811,0.00035497,4]
[310724991,1704677447074,-156.08095605,0.00035497,4]
[310724992,1704677447085,-500.0,0.00035497,2]
[310724993,1704677447095,-15986.37243427,0.000355,14]
[310724994,1704677456120,300.0,0.0002,2]
[310724995,1704677481944,1372.36918138,0.0002,2]
[310725627,1704678632678,-239.40343983,0.00020983,2]
[310725628,1704678632688,-1821.04223816,0.00021,2]
[310725629,1704678632698,-2092.18468192,0.00023,2]
[310725630,1704678632707,-155.48110577,0.00025,4]
[310725631,1704678632717,-525.66386254,0.00027206,2]
[310725632,1704678632729,-3134.74251664,0.00027207,2]
[310725633,1704678632738,-222.93578375,0.00027207,2]
[310725634,1704678632747,-304.86467547,0.00028,2]
[310725636,1704678632756,-175.660127,0.00029336,2]
[310725638,1704678632766,-2201.63301153,0.00029527,2]
[310725640,1704678632777,-1251.98186147,0.00029527,2]
[310725876,1704678641795,-525.66386254,0.00026,2]
[310725877,1704678641806,-101.9800854,0.00029527,2]
[310725878,1704678641817,-184.1610543,0.00029537,2]
[310725879,1704678641828,-6031.3988869,0.00029673,2]
[310725880,1704678641839,-536.02545128,0.00029795,2]
[310725881,1704678641848,-181.84390993,0.00029795,2]
[310725882,1704678641859,-224.8872456,0.00029795,2]
[310725883,1704678641869,-282.45630741,0.0003,3]
[310725884,1704678641880,-524.65191094,0.0003,4]
[310725885,1704678641894,-161.63323927,0.0003,4]
[310725886,1704678641904,-1392.93749097,0.00031637,5]
[310726610,1704678656141,79724.62629862,0.0002,2]
[310727668,1704678667519,162.35096936,0.0002,2]
[310728048,1704678675071,2697.45742522,0.0002,2]
[310728052,1704678885503,10000.0,0.00027,7]
[310728612,1704679342824,-401347.05889656,0.00045308,30]
[310728613,1704679342847,-5385.5069412,0.00045308,30]
[310728614,1704679342869,-659.57692877,0.00045308,30]
[310728615,1704679342892,-1139.95910856,0.00045308,30]
[310728616,1704679342914,-260000.0,0.00045308,30]
[310728617,1704679342936,-100000.0,0.00045308,30]
[310728618,1704679342960,-150.88441172,0.00045308,30]
[310728619,1704679342983,-4139.34621068,0.00045308,30]
[310728620,1704679343006,-4163.56800703,0.00045308,30]
[310728621,1704679343029,-19098.18476893,0.00045308,60]
[310728622,1704679343054,-131986.82541317,0.00045308,30]
[310728623,1704679343079,-1071929.08931338,0.00045308,30]
[310728624,1704679363201,-2000000.0,0.00045308,30]
[310728625,1704679378514,-30726.97122664,0.00045308,60]
[310728626,1704679378538,-7045.25411102,0.00045308,40]
[310728627,1704679378560,-2333.74016622,0.00045308,120]
[310728628,1704679378582,-1047.38,0.00045308,120]
[310728629,1704679378605,-5591.62978244,0.00045308,120]
[310728630,1704679378627,-10244.8739868,0.00045308,33]
[310728631,1704679378650,-154.82968634,0.00045308,120]
[310728632,1704679378671,-1678.30873257,0.00045308,120]
[310728633,1704679378694,-3995.0,0.00045308,31]
[310728634,1704679378722,-3995.0,0.00045308,32]
[310728635,1704679392431,-1696433.81839762,0.00045308,30]
[310728636,1704679392456,-303566.18160238,0.00045308,30]
[310728718,1704679836510,-782.15347661,0.00020977,2]
[310728745,1704679838371,-683.41759282,0.00020977,2]
[310728746,1704679838382,-5950.25473392,0.00020978,2]
[310728747,1704679838391,-1364.26216711,0.00020978,2]
[310728782,1704679842845,-1960.77166219,0.00020978,2]
[310728791,1704679843257,-59.49242041,0.00020978,2]
[310728792,1704679843266,-975.60037361,0.00020979,2]
[310728793,1704679843276,-239.40343983,0.0002098,2]
[310728794,1704679843285,-15873.6712433,0.0002098,2]
[310728795,1704679843294,-1555.10489413,0.00021,2]
[310728796,1704679843303,-1028.332285,0.00023024,2]
[310728797,1704679843312,-24900.0,0.00024069,2]
[310728798,1704679843321,-2505.07560019,0.00027,2]
[310728799,1704679843333,-196.05966478,0.00027,2]
[310728800,1704679843343,-14675.1737656,0.00027114,2]
[310728801,1704679843352,-689.36943021,0.00027207,2]
[310728802,1704679843362,-15744.59112337,0.00027207,2]
[310728803,1704679843371,-168.26696717,0.00029795,2]
[310728804,1704679843380,-189.73449594,0.00029795,2]
[310728805,1704679843391,-178.67515042,0.00029795,2]
[310728806,1704679843400,-214.41018051,0.00029795,2]
[310728807,1704679843409,-607.62971194,0.00029795,2]
[310728808,1704679843418,-4919.26,0.0002997,3]
[310728809,1704679843427,-10000.0,0.0003,5]
[310728810,1704679843437,-639.33323788,0.0003,4]
[310728811,1704679843446,-686.28515021,0.0003,4]
[310728812,1704679843454,-493.40825907,0.00030898,2]
[310728813,1704679843464,-500.0,0.00030898,2]
[310728814,1704679843474,-430.97794165,0.00030898,2]
[310728815,1704679843483,-500.0,0.00030898,2]
[310728816,1704679843493,-500.0,0.00030898,2]
[310728817,1704679843502,-608.48443825,0.00030898,2]
[310728818,1704679843513,-500.0,0.00030898,2]
[310728819,1704679843523,-500.0,0.00030898,2]
[310728820,1704679843533,-500.0,0.00030898,2]
[310728821,1704679843543,-500.0,0.00030898,2]
[310728822,1704679843552,-26487.86643916,0.00030899,4]
[310728823,1704679843561,-311.08086362,0.00030998,4]
[310728824,1704679843571,-8155.94896686,0.00031,4]
[310728933,1704681034466,-346.76550316,0.00023249,2]
[310728935,1704681034475,-239.40343983,0.00025346,2]
[310728936,1704681034484,-2480.23062063,0.00025346,2]
[310729065,1704681040210,-904.29562908,0.00025346,2]
[310729067,1704681040220,-975.60037361,0.00025347,2]
[310729069,1704681040229,-72.73015413,0.00025348,2]
[310729071,1704681040241,-1505.23595042,0.00025348,2]
[310729073,1704681040250,-2203.8396405,0.00025355,2]
[310729075,1704681040261,-4941.5448287,0.00025355,2]
[310729077,1704681040270,-4852.96761628,0.00025406,2]
[310729080,1704681040281,-147.03238372,0.00025406,2]
[310729082,1704681040290,-18385.46786961,0.00026047,2]
[310729115,1704681041201,-6514.53213039,0.00026047,2]
[310729118,1704681041211,-514.166142,0.00026216,2]
[310729119,1704681041220,-250.0,0.00026275,2]
[310729120,1704681041229,-176.036026,0.00026511,2]
[310729121,1704681041239,-577.6460942,0.00027702,2]
[310729122,1704681041248,-787.77340701,0.00027898,2]
[310729123,1704681041257,-182.28891358,0.00029795,2]
[310729124,1704681041266,-686.28515021,0.00030988,4]
[310729125,1704681041276,-3429.34522663,0.00030989,3]
[310729188,1704681044525,-474.79499787,0.00030998,4]
[310729190,1704681044534,-119.20500213,0.00030998,4]
[310729192,1704681044546,-339.85578053,0.00030998,4]
[310729194,1704681044555,-862.82448796,0.00030998,4]
[310729196,1704681044564,-8223.39042214,0.00030999,4]
[310729267,1704681046049,-1636.19500018,0.00030999,4]
[310729384,1704682232224,-976.73224448,0.00027898,2]
[310729386,1704682232234,-1198.3133544,0.00027898,2]
[310729388,1704682232247,-401.32961597,0.00027898,2]
[310729486,1704682238493,-2861.48886517,0.00027898,2]
[310729487,1704682238502,-325.98723732,0.00029795,2]
[310729488,1704682238511,-3878.3883787,0.00029996,2]
[310729489,1704682238520,-360.529987,0.00029997,2]
[310729490,1704682238530,-4936.83,0.00030989,3]
[310729491,1704682238540,-500.0,0.00030998,4]
[310729492,1704682238552,-500.0,0.00030998,4]
[310729493,1704682238563,-368.3610134,0.00030998,4]
[310729494,1704682238573,-508.23258222,0.00030998,4]
[310729495,1704682238583,-632.76949997,0.00030998,4]
[310729496,1704682238592,-493.24565877,0.00030998,4]
[310729498,1704682238602,-169.0,0.00030998,4]
[310729499,1704682238611,-374.76307197,0.00030998,2]
[310729500,1704682238620,-686.77316898,0.00030998,4]
[310729501,1704682238630,-3446.18146508,0.00030998,4]
[310729502,1704682238639,-1581.90486057,0.00030998,4]
[310729503,1704682238648,-485099.21855492,0.00030999,4]
[310729518,1704682241437,-500.0,0.00030998,2]
[310729519,1704682241447,-410.83452756,0.00030998,2]
[310729520,1704682241456,-500.0,0.00030998,2]
[310729521,1704682241467,-500.0,0.00030998,2]
[310729522,1704682241477,-465.09066295,0.00030998,2]
[310729523,1704682241581,-161.71956606,0.00030998,2]
[310729524,1704682241591,-500.0,0.00030998,2]
[310729525,1704682241600,-500.0,0.00030998,2]
[310729526,1704682241609,-10530.49530508,0.00030999,4]
[310729527,1704682241618,-6054.98302524,0.00030999,4]
[310729528,1704682241627,-2455.33672726,0.00030999,4]
[310729529,1704682241636,-831.94630245,0.00030999,4]
[310729530,1704682241645,-282.45630741,0.00030999,3]
[310729531,1704682241654,-13806.33777094,0.00030999,4]
[310729532,1704682241663,-734.34351144,0.00030999,4]
[310729533,1704682241672,-409.60704958,0.00030999,2]
[310729534,1704682241681,-95761.87191446,0.00031,4]
[310729535,1704682241691,-3745.89232323,0.00031211,4]
[310729536,1704682241700,-13714.83163419,0.00031211,4]
[310729537,1704682241709,-6995.82069159,0.00031212,4]
[310729538,1704682241718,-17057.78871947,0.00031212,4]
[310729539,1704682241727,-59218.83742028,0.00031213,4]
[310729540,1704682241736,-153.78698954,0.00032338,2]
[310729541,1704682241745,-2759.75,0.00032876,30]
[310729542,1704682241754,-348.81799721,0.00032876,7]
[310729543,1704682241764,-397.03173964,0.00032876,7]
[310729544,1704682241773,-246.50071653,0.00032876,7]
[310729545,1704682241782,-500.0,0.00032876,7]
[310729546,1704682241791,-500.0,0.00032876,7]
[310729547,1704682241802,-500.0,0.00032876,7]
[310729548,1704682241811,-14135.1206154,0.00032911,5]
[310729549,1704682241820,-306.0,0.00032959,2]
[310729550,1704682241830,-233.17868734,0.00033,30]
[310729551,1704682241839,-263.0,0.00033,2]
[310729552,1704682241848,-263.0,0.00033151,2]
[310729553,1704682241858,-5000.0,0.00033178,7]
[310729554,1704682241867,-2011.0,0.00034,10]
[310729555,1704682241876,-677.05207395,0.00034,3]
[310729556,1704682241885,-1000.0,0.00034,7]
[310729557,1704682241894,-156.88942267,0.00034,2]
[310729558,1704682241903,-2759.75,0.00034246,30]
[310729559,1704682241912,-153.0,0.00034466,2]
[310729560,1704682241921,-4000.0,0.00034521,2]
[310729561,1704682241930,-263.0,0.00034521,2]
[310729562,1704682241939,-2000.0,0.000347,2]
[310729563,1704682241949,-2000.0,0.0003471,2]
[310729564,1704682241958,-2000.0,0.0003472,2]
[310729565,1704682241967,-2509.60621138,0.00034726,4]
[310729566,1704682241977,-2000.0,0.0003473,2]
[310729567,1704682241986,-2000.0,0.0003474,2]
[310729568,1704682241995,-3137.748353,0.0003475,2]
[310729569,1704682242004,-155.0,0.0003489,2]
[310729570,1704682242013,-156.88942267,0.0003499,2]
[310729571,1704682242023,-153.57,0.00034999,2]
[310729572,1704682242032,-153.58,0.00034999,2]
[310729573,1704682242041,-304.93954933,0.00034999,7]
[310729574,1704682242053,-157.86900574,0.00034999,7]
[310729575,1704682242062,-500.0,0.00034999,7]
[310729576,1704682242071,-500.0,0.00034999,7]
[310729577,1704682242080,-349.57712498,0.00034999,7]
[310729578,1704682242089,-244.93424408,0.00034999,7]
[310729579,1704682242099,-2652.49351926,0.00035,4]
[310729580,1704682242111,-542.37895057,0.00035,7]
[310729581,1704682242120,-4318.93982485,0.00035,15]
[310729582,1704682242130,-154.86062544,0.00035,4]
[310729583,1704682242139,-3543.17087496,0.00035,2]
[310729584,1704682242150,-4351.82354929,0.00035,4]
[310729585,1704682242160,-590.99098966,0.00035,2]
[310729586,1704682242169,-7801.24500788,0.00035,4]
[310729587,1704682242179,-2272.43238258,0.00035,45]
[310729588,1704682242189,-45785.12687504,0.00035,4]
[310729589,1704682242198,-50406.96053192,0.00035,2]
[310729590,1704682242207,-871.10269381,0.00035,5]
[310729591,1704682242216,-875.23077334,0.00035051,14]
[310729592,1704682242225,-151.85194859,0.00035059,14]
[310729593,1704682242235,-151.85194859,0.00035121,14]
[310729594,1704682242244,-376.06483711,0.000354,2]
[310729595,1704682242253,-200.326809,0.000354,7]
[310729596,1704682242262,-741.0,0.00035452,2]
[310729597,1704682242271,-38133.01217829,0.0003548,3]
[310729598,1704682242280,-839.72061385,0.00035489,4]
[310729599,1704682242289,-566.19899236,0.00035489,4]
[310729600,1704682242300,-2034.46292859,0.00035496,4]
[310729601,1704682242310,-20908.29230276,0.00035496,2]
[310729602,1704682242319,-608.02042248,0.00035496,4]
[310729603,1704682242328,-1032.87005822,0.00035496,4]
[310729604,1704682242337,-246.37619837,0.00035496,4]
[310729605,1704682242346,-262.35393072,0.00035496,4]
[310729606,1704682242355,-265.45819836,0.00035496,4]
[310729607,1704682242364,-372.67940215,0.00035497,2]
[310729608,1704682242373,-250.51516993,0.00035497,2]
[310729609,1704682242382,-2407.33244109,0.00035497,4]
[310729610,1704682242391,-464.46676035,0.00035497,20]
[310729611,1704682242401,-1036.67226266,0.00035497,5]
[310729612,1704682242411,-196.37277908,0.00035497,4]
[310729613,1704682242419,-2824.69719939,0.00035497,4]
[310729614,1704682242429,-160.54920764,0.00035497,4]
[310729615,1704682242438,-697.5241527,0.00035498,3]
[310729616,1704682242446,-156.08002733,0.00035498,4]
[310729617,1704682242457,-155.13627026,0.00035498,4]
[310729618,1704682242466,-312.72141836,0.00035498,4]
[310729619,1704682242475,-272.04137175,0.00035498,2]
[310729620,1704682242484,-172.9479138,0.00035498,2]
[310729621,1704682242494,-156.20690451,0.00035498,4]
[310729622,1704682242503,-4798.95556941,0.00035498,4]
[310729623,1704682242512,-230.91662442,0.00035498,4]
[310729624,1704682242522,-323.51877068,0.00035498,4]
[310729625,1704682242531,-561.63688076,0.00035498,4]
[310729626,1704682242540,-510.12200022,0.00035498,4]
[310729627,1704682242556,-165.29515424,0.00035498,4]
[310729628,1704682242565,-1215.92456252,0.00035498,4]
[310729629,1704682242574,-361.61012873,0.00035498,2]
[310729630,1704682242583,-246.71191073,0.00035498,4]
[310729631,1704682242592,-213.49474814,0.00035498,4]
[310729632,1704682242601,-299.9187449,0.00035498,2]
[310729633,1704682242611,-2815.23382546,0.00035498,4]
[310729634,1704682242620,-10534.11528995,0.00035498,4]
[310729635,1704682242629,-854.8840663,0.00035499,4]
[310729636,1704682242638,-31048.93271652,0.000355,14]
[310729638,1704682242647,-156.88942267,0.00035606,2]
[310729639,1704682242656,-156.88942267,0.00035606,2]
[310729641,1704682242666,-391908.98950454,0.00035608,2]
[310729643,1704682242674,-1612.13190764,0.00035616,2]
[310729645,1704682242683,-500.0,0.00035616,2]
[310729646,1704682242692,-500.0,0.00035616,2]
[310729648,1704682242701,-500.0,0.00035616,2]
[310729650,1704682242710,-500.0,0.00035616,2]
[310729651,1704682242719,-500.0,0.00035616,2]
[310729653,1704682242728,-500.0,0.00035616,2]
[310729655,1704682242737,-500.0,0.00035616,2]
[310729656,1704682242746,-500.0,0.00035616,2]
[310729658,1704682242755,-500.0,0.00035616,2]
[310729660,1704682242764,-500.0,0.00035616,2]
[310729661,1704682242773,-500.0,0.00035616,2]
[310729662,1704682242782,-500.0,0.00035616,2]
[310729663,1704682242791,-500.0,0.00035616,2]
[310729664,1704682242801,-500.0,0.00035616,2]
[310729666,1704682242810,-191.5293739,0.00035616,2]
[310729668,1704682242819,-500.0,0.00035616,2]
[310729669,1704682242828,-500.0,0.00035616,2]
[310729671,1704682242837,-500.0,0.00035616,2]
[310729673,1704682242846,-500.0,0.00035616,2]
[310729675,1704682242855,-185.80771542,0.00035616,2]
[310729677,1704682242864,-500.0,0.00035616,2]
[310729678,1704682242873,-525.07,0.00035616,2]
[310729679,1704682242882,-500.0,0.00035616,2]
[310729680,1704682242891,-500.0,0.00035616,2]
[310729681,1704682242899,-500.0,0.00035616,2]
[310729682,1704682242908,-500.0,0.00035616,2]
[310729683,1704682242918,-453.70246994,0.00035616,2]
[310729684,1704682242927,-511.80129055,0.00035616,2]
[310729685,1704682242936,-500.0,0.00035616,2]
[310729686,1704682242945,-500.0,0.00035616,2]
[310729687,1704682242954,-500.0,0.00035616,2]
[310729688,1704682242963,-500.0,0.00035616,2]
[310729689,1704682242972,-500.0,0.00035616,2]
[310729690,1704682242981,-500.0,0.00035616,2]
[310729691,1704682242990,-505.80729413,0.00035616,2]
[310729692,1704682242999,-500.0,0.00035616,2]
[310729693,1704682243009,-500.0,0.00035616,2]
[310729694,1704682243018,-500.0,0.00035616,2]
[310729695,1704682243028,-500.0,0.00035616,2]
[310729696,1704682243037,-500.0,0.00035616,2]
[310729697,1704682243046,-1580.14,0.00035616,2]
[310729698,1704682243058,-500.0,0.00035616,2]
[310729699,1704682243068,-500.0,0.00035616,2]
[310729700,1704682243077,-500.0,0.00035616,2]
[310729701,1704682243086,-500.0,0.00035616,2]
[310729702,1704682243095,-585.62,0.00035616,2]
[310729703,1704682243105,-500.0,0.00035616,2]
[310729704,1704682243114,-500.0,0.00035616,2]
[310729705,1704682243123,-617.1570139,0.00035616,2]
[310729706,1704682243132,-500.0,0.00035616,2]
[310729707,1704682243141,-500.0,0.00035616,2]
[310729708,1704682243150,-500.0,0.00035616,2]
[310729709,1704682243160,-500.0,0.00035616,2]
[310729710,1704682243169,-516.84449583,0.00035616,2]
[310729711,1704682243248,-500.0,0.00035616,2]
[310729712,1704682243257,-500.0,0.00035616,2]
[310729713,1704682243266,-500.0,0.00035616,2]
[310729714,1704682243276,-500.0,0.00035616,2]
[310729715,1704682243285,-500.0,0.00035616,2]
[310729716,1704682243294,-503.67948103,0.00035616,2]
[310729717,1704682243305,-500.0,0.00035616,2]
[310729718,1704682243315,-500.0,0.00035616,2]
[310729719,1704682243325,-500.0,0.00035616,2]
[310729720,1704682243334,-500.0,0.00035616,2]
[310729721,1704682243343,-500.0,0.00035616,2]
[310729722,1704682243353,-340.33970695,0.00035616,2]
[310729723,1704682243362,-500.0,0.00035616,2]
[310729724,1704682243372,-500.0,0.00035616,2]
[310729725,1704682243381,-500.0,0.00035616,2]
[310729726,1704682243391,-508.10232705,0.00035616,2]
[310729727,1704682243400,-500.0,0.00035616,2]
[310729728,1704682243410,-500.0,0.00035616,2]
[310729729,1704682243420,-640.6115956,0.00035616,2]
[310729730,1704682243430,-500.0,0.00035616,2]
[310729731,1704682243439,-502.17596394,0.00035616,2]
[310729732,1704682243449,-862.39,0.00035616,2]
[310729733,1704682243458,-862.39,0.00035616,2]
[310729734,1704682243467,-862.39,0.00035616,2]
[310729735,1704682243476,-862.39,0.00035616,2]
[310729736,1704682243485,-862.39,0.00035616,2]
[310729737,1704682243494,-862.39,0.00035616,2]
[310729738,1704682243503,-862.39,0.00035616,2]
[310729739,1704682243512,-862.39,0.00035616,2]
[310729740,1704682243523,-862.39,0.00035616,2]
[310729741,1704682243532,-500.0,0.00035616,2]
[310729742,1704682243544,-862.39,0.00035616,2]
[310729743,1704682243556,-862.39,0.00035616,2]